[Event "*** Qualifier 1: Titled Tuesday 3|2 Blitz"]
[Site "Chess.com"]
[Date "2017.04.04"]
[Round "1"]
[White "Zlatan56"]
[Black "ZivkovicN"]
[Result "1-0"]
[WhiteElo "2644"]
[BlackElo "2323"]
[TimeControl "180+2"]
[EndTime "13:10:20 PDT"]
[Termination "Zlatan56 won by resignation"]

1. Nf3 {[%clk 0:03:02]} 1... Nf6 {[%clk 0:03:00.6]} 2. g3 {[%clk 0:03:02.8]}
2... e6 {[%clk 0:03:00.7]} 3. Bg2 {[%clk 0:03:02.6]} 3... d5 {[%clk 0:03:02]} 4.
O-O {[%clk 0:03:04]} 4... Be7 {[%clk 0:03:03.1]} 5. d3 {[%clk 0:03:05.2]} 5...
b6 {[%clk 0:02:59.6]} 6. e4 {[%clk 0:02:58.8]} 6... dxe4 {[%clk 0:02:41.7]} 7.
Ng5 {[%clk 0:02:59.1]} 7... Bb7 {[%clk 0:02:41.6]} 8. Nc3 {[%clk 0:02:59.7]}
8... Qc8 {[%clk 0:02:38.2]} 9. dxe4 {[%clk 0:02:59.5]} 9... O-O {[%clk
0:02:35.3]} 10. e5 {[%clk 0:02:53.1]} 10... Nfd7 {[%clk 0:02:34.1]} 11. Nf3
{[%clk 0:02:30.5]} 11... Rd8 {[%clk 0:02:29]} 12. Qe2 {[%clk 0:02:25]} 12... a5
{[%clk 0:01:53.2]} 13. Bg5 {[%clk 0:02:23.8]} 13... Bxg5 {[%clk 0:01:49.4]} 14.
Nxg5 {[%clk 0:02:23.6]} 14... h6 {[%clk 0:01:50.9]} 15. Bxb7 {[%clk 0:02:16.9]}
15... Qxb7 {[%clk 0:01:51.4]} 16. Nf3 {[%clk 0:02:18.4]} 16... Nc5 {[%clk
0:01:45.5]} 17. Rad1 {[%clk 0:02:16.1]} 17... Nc6 {[%clk 0:01:14.6]} 18. a3
{[%clk 0:02:06.8]} 18... Ne7 {[%clk 0:01:06.7]} 19. Nd4 {[%clk 0:02:05.5]} 19...
Nd5 {[%clk 0:01:03.2]} 20. Ndb5 {[%clk 0:02:05.3]} 20... Nxc3 {[%clk 0:01:03.6]}
21. Nxc3 {[%clk 0:02:07.2]} 21... Qc6 {[%clk 0:00:59.4]} 22. Rxd8+ {[%clk
0:01:48.7]} 22... Rxd8 {[%clk 0:01:00.1]} 23. Rd1 {[%clk 0:01:50.6]} 23... Rxd1+
{[%clk 0:00:55.2]} 24. Qxd1 {[%clk 0:01:52.5]} 24... Nd7 {[%clk 0:00:56]} 25.
Qd4 {[%clk 0:01:49.9]} 25... Nc5 {[%clk 0:00:46.2]} 26. h4 {[%clk 0:01:40.4]}
26... h5 {[%clk 0:00:36.9]} 27. b4 {[%clk 0:01:34.5]} 27... axb4 {[%clk
0:00:36.1]} 28. axb4 {[%clk 0:01:36.4]} 28... Nd7 {[%clk 0:00:34.6]} 29. b5
{[%clk 0:00:55.8]} 29... Qc5 {[%clk 0:00:35.4]} 30. Qxd7 {[%clk 0:00:47.4]}
30... Qxc3 {[%clk 0:00:35.7]} 31. Qe8+ {[%clk 0:00:48.8]} 31... Kh7 {[%clk
0:00:36.4]} 32. Qxf7 {[%clk 0:00:49.3]} 32... Qe1+ {[%clk 0:00:32.7]} 33. Kg2
{[%clk 0:00:47.9]} 33... Qxe5 {[%clk 0:00:34.6]} 34. c4 {[%clk 0:00:46.8]} 34...
Qe4+ {[%clk 0:00:30]} 35. Qf3 {[%clk 0:00:47.3]} 35... Qxc4 {[%clk 0:00:27.9]}
36. Qxh5+ {[%clk 0:00:47.7]} 36... Kg8 {[%clk 0:00:29.8]} 37. Qe5 {[%clk
0:00:41.2]} 37... Kf7 {[%clk 0:00:23]} 38. Qh5+ {[%clk 0:00:28.7]} 38... Ke7
{[%clk 0:00:22.3]} 39. Qg5+ {[%clk 0:00:29.2]} 39... Kf7 {[%clk 0:00:23.2]} 40.
h5 {[%clk 0:00:28.4]} 40... c6 {[%clk 0:00:19.6]} 41. bxc6 {[%clk 0:00:28]}
41... Qxc6+ {[%clk 0:00:21.5]} 42. Kh2 {[%clk 0:00:25.5]} 42... Qd5 {[%clk
0:00:22.4]} 43. Qg6+ {[%clk 0:00:26]} 43... Kf8 {[%clk 0:00:23.2]} 44. h6 {[%clk
0:00:25.4]} 44... gxh6 {[%clk 0:00:24.8]} 45. Qxh6+ {[%clk 0:00:25.5]} 45... Ke7
{[%clk 0:00:26.7]} 46. Qg7+ {[%clk 0:00:26.5]} 46... Kd6 {[%clk 0:00:27.8]} 47.
Qf8+ {[%clk 0:00:27.3]} 47... Kc6 {[%clk 0:00:28.6]} 48. Qc8+ {[%clk 0:00:27.9]}
48... Kb5 {[%clk 0:00:28.1]} 49. g4 {[%clk 0:00:28.8]} 49... Qf3 {[%clk
0:00:26.1]} 50. Qd7+ {[%clk 0:00:25.1]} 50... Kc5 {[%clk 0:00:23]} 51. Qe7+
{[%clk 0:00:25.1]} 51... Kb5 {[%clk 0:00:20.9]} 52. Qd7+ {[%clk 0:00:22.2]}
52... Kc5 {[%clk 0:00:20.8]} 53. Qc7+ {[%clk 0:00:23.2]} 53... Kb5 {[%clk
0:00:20.6]} 54. Qg3 {[%clk 0:00:23.8]} 54... Qf7 {[%clk 0:00:15.1]} 55. g5
{[%clk 0:00:23.7]} 55... Qh5+ {[%clk 0:00:15.6]} 56. Kg2 {[%clk 0:00:24.1]}
56... Qg6 {[%clk 0:00:16.9]} 57. Qe5+ {[%clk 0:00:24.5]} 57... Kc4 {[%clk
0:00:17.2]} 58. Qf6 {[%clk 0:00:23.9]} 58... Qe4+ {[%clk 0:00:17.7]} 59. Kg3
{[%clk 0:00:24.8]} 59... Qd3+ {[%clk 0:00:16.8]} 60. Kg4 {[%clk 0:00:25.3]}
60... Qe4+ {[%clk 0:00:16.5]} 61. Qf4 {[%clk 0:00:25]} 1-0

[Event "*** Qualifier 1: Titled Tuesday 3|2 Blitz"]
[Site "Chess.com"]
[Date "2017.04.04"]
[Round "1"]
[White "GrigorGrigorov"]
[Black "MagnusSeinFanboy"]
[Result "1-0"]
[WhiteElo "2523"]
[BlackElo "2218"]
[TimeControl "180+2"]
[EndTime "13:10:20 PDT"]
[Termination "GrigorGrigorov won by checkmate"]

1. d4 {[%clk 0:03:02]} 1... d5 {[%clk 0:02:59.3]} 2. c4 {[%clk 0:03:02.5]} 2...
e6 {[%clk 0:02:59.5]} 3. Nc3 {[%clk 0:03:02.8]} 3... Bb4 {[%clk 0:02:58]} 4.
Qa4+ {[%clk 0:02:58.5]} 4... Nc6 {[%clk 0:02:58]} 5. e3 {[%clk 0:02:58.2]} 5...
Nf6 {[%clk 0:02:57]} 6. Bd2 {[%clk 0:02:59.3]} 6... O-O {[%clk 0:02:55.5]} 7.
Nf3 {[%clk 0:03:00.4]} 7... a6 {[%clk 0:02:50.1]} 8. Qc2 {[%clk 0:02:57.2]} 8...
dxc4 {[%clk 0:02:46.5]} 9. Bxc4 {[%clk 0:02:57.6]} 9... Bd6 {[%clk 0:02:46.7]}
10. a3 {[%clk 0:02:53.2]} 10... e5 {[%clk 0:02:46.6]} 11. d5 {[%clk 0:02:48.9]}
11... Ne7 {[%clk 0:02:43.1]} 12. e4 {[%clk 0:02:49]} 12... c6 {[%clk 0:02:26]}
13. dxc6 {[%clk 0:02:45.2]} 13... Nxc6 {[%clk 0:02:24.9]} 14. h3 {[%clk
0:02:37]} 14... h6 {[%clk 0:02:23.6]} 15. O-O {[%clk 0:02:35.5]} 15... b5 {[%clk
0:02:19.8]} 16. Ba2 {[%clk 0:02:06.7]} 16... Bb7 {[%clk 0:02:18.7]} 17. Be3
{[%clk 0:02:05.7]} 17... Rc8 {[%clk 0:02:10]} 18. Rad1 {[%clk 0:02:03.9]} 18...
Qe7 {[%clk 0:02:05.7]} 19. Nh4 {[%clk 0:02:00]} 19... Nd4 {[%clk 0:01:45.8]} 20.
Bxd4 {[%clk 0:01:40.8]} 20... exd4 {[%clk 0:01:39.7]} 21. Ng6 {[%clk 0:01:33.2]}
21... Qc7 {[%clk 0:01:29.4]} 22. Rxd4 {[%clk 0:01:09.8]} 22... Rfd8 {[%clk
0:01:22]} 23. Rfd1 {[%clk 0:01:06.1]} 23... Bh2+ {[%clk 0:00:21.3]} 24. Kh1
{[%clk 0:01:04.8]} 24... Rxd4 {[%clk 0:00:22.1]} 25. Rxd4 {[%clk 0:01:04.4]}
25... Be5 {[%clk 0:00:21.5]} 26. Nxe5 {[%clk 0:01:02.5]} 26... Qxe5 {[%clk
0:00:23.4]} 27. Qd3 {[%clk 0:00:45.8]} 27... Re8 {[%clk 0:00:17.3]} 28. f3
{[%clk 0:00:34]} 28... Nh5 {[%clk 0:00:16.2]} 29. Rd7 {[%clk 0:00:23.1]} 29...
Re7 {[%clk 0:00:12.8]} 30. Qd6 {[%clk 0:00:18.3]} 30... Qxd6 {[%clk 0:00:07.9]}
31. Rxd6 {[%clk 0:00:18.9]} 31... Nf4 {[%clk 0:00:08.5]} 32. Kh2 {[%clk
0:00:17.9]} 32... Rc7 {[%clk 0:00:07.5]} 33. h4 {[%clk 0:00:17.1]} 33... Kf8
{[%clk 0:00:06.8]} 34. Kg3 {[%clk 0:00:16.4]} 34... Nh5+ {[%clk 0:00:04.7]} 35.
Kf2 {[%clk 0:00:16.9]} 35... Nf6 {[%clk 0:00:05.9]} 36. Ke3 {[%clk 0:00:16.4]}
36... Ke7 {[%clk 0:00:06.6]} 37. Rd4 {[%clk 0:00:14.2]} 37... h5 {[%clk
0:00:07.6]} 38. Bb3 {[%clk 0:00:11.2]} 38... Ba8 {[%clk 0:00:07.6]} 39. g3
{[%clk 0:00:11.2]} 39... Bb7 {[%clk 0:00:08.7]} 40. e5 {[%clk 0:00:12.4]} 40...
Nd7 {[%clk 0:00:07.9]} 41. f4 {[%clk 0:00:13.6]} 41... Nc5 {[%clk 0:00:09.2]}
42. Bd5 {[%clk 0:00:14.4]} 42... Bc8 {[%clk 0:00:08.7]} 43. Bf3 {[%clk
0:00:14.9]} 43... Be6 {[%clk 0:00:07.9]} 44. f5 {[%clk 0:00:14.3]} 44... Bb3
{[%clk 0:00:07.4]} 45. Bxh5 {[%clk 0:00:15.1]} 45... Nd7 {[%clk 0:00:06.5]} 46.
Kf4 {[%clk 0:00:15]} 46... Nb6 {[%clk 0:00:06.7]} 47. Be2 {[%clk 0:00:14.7]}
47... Bc4 {[%clk 0:00:07.4]} 48. Bxc4 {[%clk 0:00:14.5]} 48... Rxc4 {[%clk
0:00:08.4]} 49. Ke4 {[%clk 0:00:14.9]} 49... Rc7 {[%clk 0:00:09.4]} 50. g4
{[%clk 0:00:14.3]} 50... Ke8 {[%clk 0:00:09.7]} 51. g5 {[%clk 0:00:15]} 51...
Nc4 {[%clk 0:00:10.7]} 52. Nd5 {[%clk 0:00:12.8]} 52... Rc5 {[%clk 0:00:09.2]}
53. f6 {[%clk 0:00:11.4]} 53... gxf6 {[%clk 0:00:07.2]} 54. exf6 {[%clk
0:00:11.2]} 54... Nxb2 {[%clk 0:00:07.4]} 55. h5 {[%clk 0:00:12.5]} 55... Rc1
{[%clk 0:00:07.4]} 56. h6 {[%clk 0:00:12.4]} 56... Re1+ {[%clk 0:00:08.1]} 57.
Kf3 {[%clk 0:00:13.1]} 57... Rf1+ {[%clk 0:00:09.3]} 58. Ke2 {[%clk 0:00:14.1]}
58... Rg1 {[%clk 0:00:10.2]} 59. Nc7+ {[%clk 0:00:15.3]} 59... Kf8 {[%clk
0:00:10.1]} 60. Rd8# {[%clk 0:00:16.2]} 1-0

[Event "*** Qualifier 1: Titled Tuesday 3|2 Blitz"]
[Site "Chess.com"]
[Date "2017.04.04"]
[Round "1"]
[White "chipmunknau"]
[Black "kereswasbest"]
[Result "1/2-1/2"]
[WhiteElo "2413"]
[BlackElo "2090"]
[TimeControl "180+2"]
[EndTime "13:10:30 PDT"]
[Termination "Game drawn - insufficient material"]

1. Nf3 {[%clk 0:03:02]} 1... Nf6 {[%clk 0:02:41.8]} 2. g3 {[%clk 0:02:57.9]}
2... g6 {[%clk 0:02:42.6]} 3. Bg2 {[%clk 0:02:56.8]} 3... Bg7 {[%clk 0:02:44.2]}
4. O-O {[%clk 0:02:58.7]} 4... d5 {[%clk 0:02:45.4]} 5. d4 {[%clk 0:03:00.5]}
5... O-O {[%clk 0:02:46.3]} 6. c4 {[%clk 0:03:02.4]} 6... c6 {[%clk 0:02:46.8]}
7. Nc3 {[%clk 0:03:02.6]} 7... Bf5 {[%clk 0:02:47]} 8. Qb3 {[%clk 0:02:59.7]}
8... Qb6 {[%clk 0:02:47.6]} 9. c5 {[%clk 0:02:59.1]} 9... Qxb3 {[%clk
0:02:47.6]} 10. axb3 {[%clk 0:03:01]} 10... Nbd7 {[%clk 0:02:48.2]} 11. b4
{[%clk 0:03:02.1]} 11... a6 {[%clk 0:02:49.4]} 12. Nd2 {[%clk 0:02:55.8]} 12...
Rfe8 {[%clk 0:02:42.8]} 13. Nb3 {[%clk 0:02:41.4]} 13... Ne4 {[%clk 0:02:22.3]}
14. Nxe4 {[%clk 0:02:26.3]} 14... Bxe4 {[%clk 0:02:18]} 15. f3 {[%clk
0:02:15.6]} 15... Bc2 {[%clk 0:02:12]} 16. Na5 {[%clk 0:02:16.7]} 16... Rab8
{[%clk 0:02:03.1]} 17. e3 {[%clk 0:02:05.5]} 17... e5 {[%clk 0:01:55.7]} 18. Rf2
{[%clk 0:02:01.4]} 18... Bd3 {[%clk 0:01:49.3]} 19. Rd2 {[%clk 0:01:51.9]} 19...
Bb5 {[%clk 0:01:46.9]} 20. Kf2 {[%clk 0:01:42.9]} 20... exd4 {[%clk 0:01:43.7]}
21. exd4 {[%clk 0:01:44.8]} 21... Re7 {[%clk 0:01:41.5]} 22. Bf1 {[%clk
0:01:36]} 22... Bxf1 {[%clk 0:01:39.6]} 23. Kxf1 {[%clk 0:01:37.9]} 23... Nf8
{[%clk 0:01:38.9]} 24. Rd1 {[%clk 0:01:35.6]} 24... Rbe8 {[%clk 0:01:39.3]} 25.
Bg5 {[%clk 0:01:28.6]} 25... Rd7 {[%clk 0:01:34.5]} 26. Kf2 {[%clk 0:01:18.8]}
26... Ne6 {[%clk 0:01:30.8]} 27. Be3 {[%clk 0:01:19.4]} 27... Rde7 {[%clk
0:01:32]} 28. Ra3 {[%clk 0:01:05.6]} 28... f5 {[%clk 0:01:27.2]} 29. Rad3 {[%clk
0:00:52.2]} 29... h6 {[%clk 0:01:26.7]} 30. Bc1 {[%clk 0:00:49.3]} 30... Nd8
{[%clk 0:01:25.4]} 31. Re3 {[%clk 0:00:45.4]} 31... Kf7 {[%clk 0:01:23.4]} 32.
Rxe7+ {[%clk 0:00:44.5]} 32... Rxe7 {[%clk 0:01:22.5]} 33. Bf4 {[%clk
0:00:41.9]} 33... g5 {[%clk 0:01:21.1]} 34. Bd6 {[%clk 0:00:42.3]} 34... Re6
{[%clk 0:01:19.1]} 35. Bc7 {[%clk 0:00:41.4]} 35... Ke8 {[%clk 0:01:12.9]} 36.
Bxd8 {[%clk 0:00:42]} 36... Kxd8 {[%clk 0:01:13.7]} 37. Nxb7+ {[%clk 0:00:43.9]}
37... Kc7 {[%clk 0:01:14.3]} 38. Nd6 {[%clk 0:00:43.2]} 38... f4 {[%clk
0:01:13]} 39. Nf5 {[%clk 0:00:40.8]} 39... Bf8 {[%clk 0:01:12.6]} 40. gxf4
{[%clk 0:00:39.6]} 40... gxf4 {[%clk 0:01:13.3]} 41. Rg1 {[%clk 0:00:40.3]}
41... Rf6 {[%clk 0:01:13.7]} 42. Nh4 {[%clk 0:00:40.4]} 42... Rf7 {[%clk
0:01:11]} 43. Rg8 {[%clk 0:00:40.3]} 43... Bg7 {[%clk 0:01:11.9]} 44. Nf5 {[%clk
0:00:36.1]} 44... Bf8 {[%clk 0:01:10.1]} 45. Nd6 {[%clk 0:00:28.2]} 45... Bxd6
{[%clk 0:01:10.6]} 46. cxd6+ {[%clk 0:00:30.1]} 46... Kxd6 {[%clk 0:01:08.8]}
47. Rg6+ {[%clk 0:00:32]} 47... Kc7 {[%clk 0:01:07.7]} 48. Rxh6 {[%clk
0:00:33.4]} 48... Kb6 {[%clk 0:01:08.4]} 49. h4 {[%clk 0:00:33.4]} 49... Kb5
{[%clk 0:01:08.7]} 50. h5 {[%clk 0:00:34.8]} 50... Rf5 {[%clk 0:01:01.8]} 51.
Kg2 {[%clk 0:00:26.2]} 51... Rg5+ {[%clk 0:00:59.8]} 52. Kf2 {[%clk 0:00:27.2]}
52... Rf5 {[%clk 0:00:59.3]} 53. Rh8 {[%clk 0:00:27.6]} 53... Kxb4 {[%clk
0:00:59.4]} 54. h6 {[%clk 0:00:26.4]} 54... Rh5 {[%clk 0:00:57.5]} 55. Rf8
{[%clk 0:00:16.3]} 55... Rxh6 {[%clk 0:00:56.3]} 56. Rxf4 {[%clk 0:00:17.9]}
56... Rh2+ {[%clk 0:00:56.5]} 57. Kg3 {[%clk 0:00:15.7]} 57... Rxb2 {[%clk
0:00:58.4]} 58. Rf6 {[%clk 0:00:17.2]} 58... Kb5 {[%clk 0:00:58.2]} 59. Kf4
{[%clk 0:00:17.7]} 59... a5 {[%clk 0:00:58]} 60. Ke5 {[%clk 0:00:18.5]} 60... a4
{[%clk 0:00:58.9]} 61. Rf8 {[%clk 0:00:18.9]} 61... Kc4 {[%clk 0:00:55.2]} 62.
Rc8 {[%clk 0:00:15.6]} 62... Re2+ {[%clk 0:00:52.7]} 63. Kd6 {[%clk 0:00:15.6]}
63... Kxd4 {[%clk 0:00:52.2]} 64. Rxc6 {[%clk 0:00:16.5]} 64... a3 {[%clk
0:00:53.4]} 65. Ra6 {[%clk 0:00:17.3]} 65... a2 {[%clk 0:00:51.2]} 66. Ra4+
{[%clk 0:00:16.2]} 66... Ke3 {[%clk 0:00:50.1]} 67. Kxd5 {[%clk 0:00:16.6]}
67... Kxf3 {[%clk 0:00:50.8]} 68. Ra3+ {[%clk 0:00:16.9]} 68... Kf2 {[%clk
0:00:50]} 69. Kc4 {[%clk 0:00:18.2]} 69... Ke1 {[%clk 0:00:51.3]} 70. Kb3 {[%clk
0:00:19]} 70... Kd1 {[%clk 0:00:51.6]} 71. Rxa2 {[%clk 0:00:19.4]} 71... Rxa2
{[%clk 0:00:53.2]} 72. Kxa2 {[%clk 0:00:21.3]} 1/2-1/2

[Event "*** Qualifier 1: Titled Tuesday 3|2 Blitz"]
[Site "Chess.com"]
[Date "2017.04.04"]
[Round "1"]
[White "Tirantes"]
[Black "rasmussvane"]
[Result "0-1"]
[WhiteElo "2206"]
[BlackElo "2514"]
[TimeControl "180+2"]
[EndTime "13:11:00 PDT"]
[Termination "rasmussvane won by resignation"]

1. c4 {[%clk 0:03:02]} 1... e6 {[%clk 0:02:59.7]} 2. g3 {[%clk 0:03:01.8]} 2...
d5 {[%clk 0:03:00.5]} 3. Bg2 {[%clk 0:03:02.2]} 3... a6 {[%clk 0:02:58.6]} 4.
cxd5 {[%clk 0:02:55.1]} 4... exd5 {[%clk 0:02:59.6]} 5. Nf3 {[%clk 0:02:55.4]}
5... Nf6 {[%clk 0:03:00.9]} 6. O-O {[%clk 0:02:55.7]} 6... Bd6 {[%clk
0:03:02.1]} 7. b3 {[%clk 0:02:54.3]} 7... O-O {[%clk 0:03:02.4]} 8. Bb2 {[%clk
0:02:55]} 8... Re8 {[%clk 0:03:03.2]} 9. d3 {[%clk 0:02:54.6]} 9... a5 {[%clk
0:02:51.2]} 10. a3 {[%clk 0:02:51.2]} 10... Na6 {[%clk 0:02:50.2]} 11. Nbd2
{[%clk 0:02:47.1]} 11... c6 {[%clk 0:02:51.2]} 12. e3 {[%clk 0:02:41.8]} 12...
Bf5 {[%clk 0:02:49.3]} 13. d4 {[%clk 0:02:35.8]} 13... h6 {[%clk 0:02:47.3]} 14.
Re1 {[%clk 0:02:33.3]} 14... Bh7 {[%clk 0:02:45.5]} 15. Ne5 {[%clk 0:02:32]}
15... Nc7 {[%clk 0:02:39.3]} 16. Ndf3 {[%clk 0:02:29.2]} 16... Qe7 {[%clk
0:02:39.8]} 17. Nd3 {[%clk 0:02:25.6]} 17... Nb5 {[%clk 0:02:39.9]} 18. a4
{[%clk 0:02:18.2]} 18... Nc7 {[%clk 0:02:41]} 19. Rc1 {[%clk 0:02:12.2]} 19...
Ne4 {[%clk 0:02:29.4]} 20. Qe2 {[%clk 0:01:55.9]} 20... Bg6 {[%clk 0:02:21.6]}
21. Nh4 {[%clk 0:01:51.6]} 21... Bh7 {[%clk 0:02:21.3]} 22. Bh3 {[%clk
0:01:45.9]} 22... Ng5 {[%clk 0:02:16.2]} 23. Bg2 {[%clk 0:01:44.5]} 23... Be4
{[%clk 0:02:10.1]} 24. f3 {[%clk 0:01:34.4]} 24... Bh7 {[%clk 0:02:11.2]} 25.
Ne5 {[%clk 0:01:25.5]} 25... Na6 {[%clk 0:02:03.5]} 26. f4 {[%clk 0:01:19.1]}
26... Ne4 {[%clk 0:02:04]} 27. f5 {[%clk 0:01:18.2]} 27... Nf6 {[%clk
0:01:52.9]} 28. Bh3 {[%clk 0:01:14.7]} 28... Rad8 {[%clk 0:01:40.9]} 29. Ng2
{[%clk 0:01:13.7]} 29... Nb8 {[%clk 0:01:37.8]} 30. Nf4 {[%clk 0:01:11]} 30...
Nbd7 {[%clk 0:01:35.2]} 31. Nfd3 {[%clk 0:01:11.7]} 31... Ne4 {[%clk 0:01:33.3]}
32. g4 {[%clk 0:01:07.2]} 32... Ndf6 {[%clk 0:01:33.1]} 33. Bg2 {[%clk
0:01:04.5]} 33... Rc8 {[%clk 0:01:31.6]} 34. Rf1 {[%clk 0:01:00.8]} 34... b5
{[%clk 0:01:24.2]} 35. h4 {[%clk 0:00:59]} 35... Nd7 {[%clk 0:01:20.2]} 36. Qe1
{[%clk 0:00:53.5]} 36... bxa4 {[%clk 0:01:07.5]} 37. bxa4 {[%clk 0:00:51.2]}
37... c5 {[%clk 0:01:07.6]} 38. Bxe4 {[%clk 0:00:48]} 38... dxe4 {[%clk
0:01:08.5]} 39. Nxd7 {[%clk 0:00:47.7]} 39... exd3 {[%clk 0:01:05.9]} 40. Ne5
{[%clk 0:00:44.1]} 40... Bxe5 {[%clk 0:00:48]} 41. dxe5 {[%clk 0:00:44.2]} 41...
Qd7 {[%clk 0:00:49.4]} 42. Qc3 {[%clk 0:00:39.8]} 42... d2 {[%clk 0:00:45.2]}
43. Rcd1 {[%clk 0:00:40.5]} 43... Qxa4 {[%clk 0:00:46.8]} 44. Rxd2 {[%clk
0:00:31.2]} 44... Qb4 {[%clk 0:00:47.8]} 45. Rc1 {[%clk 0:00:25.6]} 45... Qxg4+
{[%clk 0:00:45.2]} 46. Rg2 {[%clk 0:00:26.1]} 46... Qxf5 {[%clk 0:00:46.6]} 47.
e6 {[%clk 0:00:26.7]} 47... f6 {[%clk 0:00:43.9]} 48. Qxf6 {[%clk 0:00:27.3]}
48... Qxf6 {[%clk 0:00:44.5]} 49. Bxf6 {[%clk 0:00:27.7]} 49... Rc7 {[%clk
0:00:45]} 50. e7 {[%clk 0:00:28.1]} 50... Kf7 {[%clk 0:00:46.3]} 51. Rxg7+
{[%clk 0:00:25.6]} 51... Kxf6 {[%clk 0:00:47.2]} 52. Rxh7 {[%clk 0:00:26.4]}
52... Rexe7 {[%clk 0:00:48.7]} 53. Rxh6+ {[%clk 0:00:27.3]} 53... Ke5 {[%clk
0:00:50.2]} 54. Rh5+ {[%clk 0:00:27.4]} 54... Kd6 {[%clk 0:00:48.1]} 55. Rh6+
{[%clk 0:00:28]} 55... Kd5 {[%clk 0:00:48.9]} 56. Rh5+ {[%clk 0:00:29.1]} 56...
Kd6 {[%clk 0:00:49.9]} 57. Rh6+ {[%clk 0:00:30.1]} 57... Re6 {[%clk 0:00:51.3]}
58. Rh5 {[%clk 0:00:28.6]} 58... Rxe3 {[%clk 0:00:46.9]} 59. Rd1+ {[%clk
0:00:28.8]} 59... Kc6 {[%clk 0:00:47.1]} 60. Rc1 {[%clk 0:00:25.7]} 60... Kb5
{[%clk 0:00:44.5]} 61. Rb1+ {[%clk 0:00:25.7]} 61... Kc4 {[%clk 0:00:45.4]} 62.
Ra1 {[%clk 0:00:26.2]} 62... Kb4 {[%clk 0:00:45.4]} 63. Rg5 {[%clk 0:00:25.6]}
63... a4 {[%clk 0:00:43.7]} 64. h5 {[%clk 0:00:24.9]} 64... a3 {[%clk
0:00:43.4]} 65. h6 {[%clk 0:00:25.7]} 65... Rh3 {[%clk 0:00:29.2]} 66. Rb1+
{[%clk 0:00:22.3]} 66... Kc3 {[%clk 0:00:24.3]} 67. Rc1+ {[%clk 0:00:20.5]}
67... Kb2 {[%clk 0:00:24.4]} 68. Rcxc5 {[%clk 0:00:20.4]} 68... Rxc5 {[%clk
0:00:25.5]} 69. Rxc5 {[%clk 0:00:20.9]} 69... a2 {[%clk 0:00:24.4]} 70. Rb5+
{[%clk 0:00:21.1]} 70... Rb3 {[%clk 0:00:25.2]} 71. Ra5 {[%clk 0:00:19.3]} 71...
a1=Q+ {[%clk 0:00:26.2]} 72. Rxa1 {[%clk 0:00:19.9]} 72... Kxa1 {[%clk
0:00:27.6]} 73. Kf2 {[%clk 0:00:20.8]} 73... Rh3 {[%clk 0:00:27.7]} 74. Kg2
{[%clk 0:00:21.6]} 74... Rxh6 {[%clk 0:00:28.8]} 75. Kg3 {[%clk 0:00:22.6]}
75... Kb2 {[%clk 0:00:29.9]} 76. Kg4 {[%clk 0:00:23.7]} 76... Kc3 {[%clk
0:00:31.3]} 77. Kg5 {[%clk 0:00:24.7]} 77... Rd6 {[%clk 0:00:32.8]} 0-1